fUSD/lending_fUSD_20260516
["ID","MTS","AMOUNT","RATE_DAILY","PERIOD"]
[422382533,1778913043000,-22845.07929,0.00015,2]
[422382532,1778913043000,-251.53085148,0.00015,2]
[422382531,1778913043000,-7878.32162018,0.00015,2]
[422382530,1778913043000,-5810.9646006,0.00015,2]
[422382534,1778913046000,-3896.2896008,0.00015,2]
[422382535,1778913046000,-349.40003192,0.00015,2]
[422382538,1778913046000,-2333.69078189,0.00015,2]
[422382537,1778913046000,-5503.97429654,0.00015,2]
[422382536,1778913046000,-571.56954537,0.00015,2]
[422382542,1778913618000,200.0,0.0003,120]
[422382543,1778913865000,248.32,7.073e-05,2]
[422382545,1778913997000,-48.31703428,0.00013488,2]
[422382544,1778913997000,-200.0,0.00013356,2]
[422382546,1778914070000,500.0,0.0003,120]
[422382576,1778914232000,-150.0,0.00014687,2]
[422382574,1778914232000,-2910.21698603,0.000146,2]
[422382575,1778914232000,-2806.78,0.000146,2]
[422382579,1778914232000,-186.55187967,0.000147,2]
[422382580,1778914232000,-2224.9109754,0.00014836,2]
[422382581,1778914232000,-300.0,0.00014836,2]
[422382584,1778914232000,-871.7984,0.0001485,2]
[422382583,1778914232000,-871.79839,0.0001485,2]
[422382589,1778914232000,-1148.76047939,0.000149,2]
[422382586,1778914232000,-200.0,0.0001488,2]
[422382590,1778914232000,-2263.46720895,0.000149,2]
[422382585,1778914232000,-871.7984,0.0001486,2]
[422382587,1778914232000,-702.601,0.00014898,2]
[422382588,1778914232000,-1526.02117234,0.000149,2]
[422382592,1778914232000,-500.0,0.000149,2]
[422382573,1778914232000,-1166.83551856,0.000146,2]
[422382602,1778914232000,-8023.5137263,0.00014987,2]
[422382582,1778914232000,-373.23989656,0.00014836,2]
[422382577,1778914232000,-1394.2829,0.00014698,2]
[422382556,1778914232000,-300.0,0.00013737,2]
[422382572,1778914232000,-339.88749541,0.000146,2]
[422382554,1778914232000,-101.68296572,0.00013488,2]
[422382606,1778914232000,-151.0,0.00014997,2]
[422382557,1778914232000,-300.0,0.00013737,2]
[422382555,1778914232000,-911.0,0.0001372,2]
[422382566,1778914232000,-158.56,0.00014123,2]
[422382565,1778914232000,-150.0,0.00014087,2]
[422382560,1778914232000,-175.47,0.00013947,2]
[422382559,1778914232000,-2000.0,0.00013898,2]
[422382571,1778914232000,-167.45,0.00014488,2]
[422382558,1778914232000,-150.0,0.00013787,2]
[422382561,1778914232000,-200.0,0.00013962,2]
[422382562,1778914232000,-481.63,0.00013964,2]
[422382563,1778914232000,-297.0,0.00014,2]
[422382568,1778914232000,-15.34099558,0.00014267,2]
[422382578,1778914232000,-350.0,0.00014699,3]
[422382567,1778914232000,-215.86603042,0.00014267,2]
[422382569,1778914232000,-166.67,0.00014339,2]
[422382570,1778914232000,-150.0,0.00014387,2]
[422382564,1778914232000,-167.45,0.00014021,2]
[422382591,1778914232000,-1249.39039257,0.000149,2]
[422382598,1778914232000,-167.45,0.00014956,2]
[422382594,1778914232000,-480.31542163,0.000149,2]
[422382632,1778914232000,-730.965177,0.00014999,2]
[422382639,1778914232000,-730.965177,0.00014999,2]
[422382637,1778914232000,-730.965177,0.00014999,2]
[422382633,1778914232000,-730.965177,0.00014999,2]
[422382630,1778914232000,-500.0,0.00014999,2]
[422382634,1778914232000,-730.965177,0.00014999,2]
[422382631,1778914232000,-500.0,0.00014999,2]
[422382629,1778914232000,-588.74898815,0.00014999,2]
[422382640,1778914232000,-730.965177,0.00014999,2]
[422382642,1778914232000,-730.965177,0.00014999,2]
[422382643,1778914232000,-730.965177,0.00014999,2]
[422382648,1778914232000,-730.965177,0.00014999,2]
[422382647,1778914232000,-730.965177,0.00014999,2]
[422382604,1778914232000,-152.0,0.00014992,2]
[422382641,1778914232000,-730.965177,0.00014999,2]
[422382645,1778914232000,-730.965177,0.00014999,2]
[422382646,1778914232000,-730.965177,0.00014999,2]
[422382636,1778914232000,-730.965177,0.00014999,2]
[422382638,1778914232000,-730.965177,0.00014999,2]
[422382644,1778914232000,-730.965177,0.00014999,2]
[422382628,1778914232000,-500.0,0.00014999,2]
[422382635,1778914232000,-730.965177,0.00014999,2]
[422382595,1778914232000,-785.0,0.000149,2]
[422382599,1778914232000,-764.81758098,0.00014974,2]
[422382596,1778914232000,-21204.10340185,0.000149,2]
[422382597,1778914232000,-1877.2184,0.000149,2]
[422382613,1778914232000,-500.0,0.00014997,2]
[422382610,1778914232000,-500.0,0.00014997,2]
[422382619,1778914232000,-500.0,0.00014997,2]
[422382620,1778914232000,-500.0,0.00014997,2]
[422382600,1778914232000,-150.0,0.00014986,2]
[422382622,1778914232000,-5000.01,0.00014998,2]
[422382623,1778914232000,-522.95350649,0.00014998,2]
[422382617,1778914232000,-500.0,0.00014997,2]
[422382625,1778914232000,-1090.63123349,0.00014999,5]
[422382626,1778914232000,-500.0,0.00014999,2]
[422382615,1778914232000,-500.0,0.00014997,2]
[422382624,1778914232000,-500.0,0.00014998,2]
[422382609,1778914232000,-500.0,0.00014997,2]
[422382627,1778914232000,-343.1,0.00014999,2]
[422382678,1778914233000,-730.965177,0.00014999,2]
[422382677,1778914233000,-730.965177,0.00014999,2]
[422382669,1778914233000,-730.965177,0.00014999,2]
[422382671,1778914233000,-730.965177,0.00014999,2]
[422382666,1778914233000,-730.965177,0.00014999,2]
[422382668,1778914233000,-730.965177,0.00014999,2]
[422382675,1778914233000,-730.965177,0.00014999,2]
[422382672,1778914233000,-730.965177,0.00014999,2]
[422382674,1778914233000,-730.965177,0.00014999,2]
[422382676,1778914233000,-730.965177,0.00014999,2]
[422382673,1778914233000,-730.965177,0.00014999,2]
[422382679,1778914233000,-730.965177,0.00014999,2]
[422382667,1778914233000,-730.965177,0.00014999,2]
[422382670,1778914233000,-730.965177,0.00014999,2]
[422382662,1778914233000,-730.965177,0.00014999,2]
[422382657,1778914233000,-730.965177,0.00014999,2]
[422382658,1778914233000,-730.965177,0.00014999,2]
[422382681,1778914233000,-730.965177,0.00014999,2]
[422382653,1778914233000,-730.965177,0.00014999,2]
[422382652,1778914233000,-730.965177,0.00014999,2]
[422382651,1778914233000,-730.965177,0.00014999,2]
[422382650,1778914233000,-730.965177,0.00014999,2]
[422382649,1778914233000,-730.965177,0.00014999,2]
[422382656,1778914233000,-730.965177,0.00014999,2]
[422382654,1778914233000,-730.965177,0.00014999,2]
[422382659,1778914233000,-730.965177,0.00014999,2]
[422382660,1778914233000,-730.965177,0.00014999,2]
[422382663,1778914233000,-730.965177,0.00014999,2]
[422382664,1778914233000,-730.965177,0.00014999,2]
[422382665,1778914233000,-730.965177,0.00014999,2]
[422382661,1778914233000,-730.965177,0.00014999,2]
[422382655,1778914233000,-730.965177,0.00014999,2]
[422382680,1778914233000,-730.965177,0.00014999,2]
[422382692,1778914233000,-717.67490104,0.00014999,2]
[422382684,1778914233000,-730.965177,0.00014999,2]
[422382701,1778914233000,-717.67490104,0.00014999,2]
[422382695,1778914233000,-717.67490104,0.00014999,2]
[422382705,1778914233000,-717.67490104,0.00014999,2]
[422382707,1778914233000,-717.67490104,0.00014999,2]
[422382713,1778914233000,-717.67490104,0.00014999,2]
[422382710,1778914233000,-717.67490104,0.00014999,2]
[422382700,1778914233000,-717.67490104,0.00014999,2]
[422382712,1778914233000,-405.91975565,0.00014999,2]
[422382708,1778914233000,-717.67490104,0.00014999,2]
[422382711,1778914233000,-311.75514539,0.00014999,2]
[422382706,1778914233000,-717.67490104,0.00014999,2]
[422382714,1778914233000,-214.11520539,0.00014999,2]
[422382715,1778914233000,-503.55969565,0.00014999,2]
[422382683,1778914233000,-730.965177,0.00014999,2]
[422382709,1778914233000,-717.67490104,0.00014999,2]
[422382696,1778914233000,-717.67490104,0.00014999,2]
[422382699,1778914233000,-717.67490104,0.00014999,2]
[422382703,1778914233000,-717.67490104,0.00014999,2]
[422382682,1778914233000,-730.965177,0.00014999,2]
[422382688,1778914233000,-717.67490104,0.00014999,2]
[422382691,1778914233000,-717.67490104,0.00014999,2]
[422382690,1778914233000,-717.67490104,0.00014999,2]
[422382686,1778914233000,-730.965177,0.00014999,2]
[422382702,1778914233000,-717.67490104,0.00014999,2]
[422382685,1778914233000,-730.965177,0.00014999,2]
[422382687,1778914233000,-240.08945661,0.00014999,2]
[422382693,1778914233000,-717.67490104,0.00014999,2]
[422382694,1778914233000,-717.67490104,0.00014999,2]
[422382716,1778914233000,-169.943399,0.00014999,2]
[422382697,1778914233000,-717.67490104,0.00014999,2]
[422382704,1778914233000,-717.67490104,0.00014999,2]
[422382698,1778914233000,-717.67490104,0.00014999,2]
[422382689,1778914233000,-717.67490104,0.00014999,2]
[422382725,1778914238000,-717.67490104,0.00014999,2]
[422382724,1778914238000,-18.31559661,0.00014999,2]
[422382729,1778914238000,-500.0,0.00014999,2]
[422382722,1778914238000,-186.55187968,0.000147,2]
[422382728,1778914238000,-717.67490104,0.00014999,2]
[422382732,1778914238000,-500.0,0.00014999,2]
[422382723,1778914238000,-529.41590543,0.00014999,2]
[422382730,1778914238000,-500.0,0.00014999,2]
[422382727,1778914238000,-717.67490104,0.00014999,2]
[422382733,1778914238000,-243.35699505,0.00014999,2]
[422382731,1778914238000,-500.0,0.00014999,2]
[422382726,1778914238000,-717.67490104,0.00014999,2]
[422382753,1778914239000,-682.06582706,0.00015,5]
[422382752,1778914239000,-416.93417294,0.00015,5]
[422382751,1778914239000,-586.92672094,0.00015,5]
[422382750,1778914239000,-250.41822713,0.00015,5]
[422382748,1778914239000,-666.0,0.00014999,2]
[422382754,1778914239000,-150.0,0.00015,2]
[422382744,1778914239000,-300.0,0.00014999,2]
[422382749,1778914239000,-541.65505193,0.00015,5]
[422382746,1778914239000,-666.0,0.00014999,2]
[422382747,1778914239000,-300.0,0.00014999,2]
[422382740,1778914239000,-717.67490112,0.00014999,2]
[422382742,1778914239000,-249.54605433,0.00014999,2]
[422382741,1778914239000,-501.1482029,0.00014999,2]
[422382739,1778914239000,-305.74909097,0.00014999,2]
[422382736,1778914239000,-469.72928456,0.00014999,2]
[422382738,1778914239000,-283.3919623,0.00014999,2]
[422382734,1778914239000,-182.25476934,0.00014999,2]
[422382735,1778914239000,-30.27071544,0.00014999,2]
[422382737,1778914239000,-128.53384785,0.00014999,2]
[422382755,1778914239000,-150.0,0.00015,2]
[422382743,1778914239000,-300.0,0.00014999,2]
[422382758,1778914239000,-1049.53799999,0.00015,2]
[422382762,1778914239000,-1422026.82471321,0.00015,2]
[422382775,1778914239000,-242.781,0.00015,2]
[422382777,1778914239000,-151.0,0.00015,2]
[422382778,1778914239000,-150.823,0.00015,2]
[422382779,1778914239000,-2815364.91418475,0.00015,2]
[422382776,1778914239000,-150.974,0.00015,2]
[422382780,1778914239000,-579.78867862,0.00015,2]
[422382774,1778914239000,-250.0,0.00015,2]
[422382773,1778914239000,-165.938,0.00015,2]
[422382772,1778914239000,-150.224,0.00015,2]
[422382768,1778914239000,-663.71786296,0.00015,2]
[422382771,1778914239000,-192.979,0.00015,2]
[422382756,1778914239000,-1091.36052864,0.00015,2]
[422382769,1778914239000,-348.34,0.00015,2]
[422382766,1778914239000,-595.57617731,0.00015,2]
[422382770,1778914239000,-174.174,0.00015,2]
[422382765,1778914239000,-150.0,0.00015,2]
[422382763,1778914239000,-150.0,0.00015,2]
[422382764,1778914239000,-377.90049415,0.00015,2]
[422382761,1778914239000,-2592.62594964,0.00015,2]
[422382760,1778914239000,-375.18949292,0.00015,2]
[422382759,1778914239000,-49182.04045867,0.00015,2]
[422382757,1778914239000,-1074.75675974,0.00015,2]
[422382767,1778914239000,-150.0,0.00015,2]
[422382782,1778914240000,-4314.93350151,0.00015,2]
[422382783,1778914240000,-509.32134718,0.00015,2]
[422382784,1778914241000,-942.936,0.00015,2]
[422382808,1778914248000,-372433.11570217,0.00015,2]
[422382807,1778914248000,-360194.52386835,0.00015,2]
[422382804,1778914248000,-8245.59223283,0.00015,2]
[422382805,1778914248000,-4105.23491146,0.00015,2]
[422382806,1778914248000,-1263.47514795,0.00015,2]
[422382809,1778914249000,-1244.78645993,0.00015,2]
[422382810,1778914251000,-442.11253878,0.00015,2]
[422382814,1778914253000,-556.3861,0.00015,2]
[422382816,1778914279000,199.90217242,0.00030076,120]
[422382832,1778915196000,-500.0,0.00013356,2]
[422382833,1778915196000,-500.0,0.00013356,2]
[422382845,1778915198000,-262.88927429,0.00014,2]
[422382834,1778915198000,-500.0,0.00013356,2]
[422382835,1778915198000,-500.0,0.00013388,2]
[422382836,1778915198000,-167.45,0.00013822,2]
[422382839,1778915198000,-160.55621559,0.00013993,21]
[422382837,1778915198000,-832.55,0.00013943,2]
[422382841,1778915198000,-300.0,0.00013999,2]
[422382840,1778915198000,-233.20451012,0.00013993,21]
[422382842,1778915198000,-262.88927429,0.00014,2]
[422382844,1778915198000,-500.0,0.00014,2]
[422382843,1778915198000,-237.11072571,0.00014,2]
[422382838,1778915198000,-43.35,0.00013943,2]
[422382847,1778915199000,-500.0,0.00014,2]
[422382846,1778915199000,-237.11072571,0.00014,2]
[422382848,1778915199000,-262.88927429,0.00014,2]
[422382849,1778915199000,-237.11072571,0.00014,2]
[422382850,1778915199000,-500.0,0.00014,2]
[422382852,1778915199000,-237.11072571,0.00014,2]
[422382853,1778915199000,-500.0,0.00014,2]
[422382854,1778915199000,-262.88927429,0.00014,2]
[422382851,1778915199000,-262.88927429,0.00014,2]
[422382862,1778915200000,-324.99,0.00014,2]
[422382863,1778915200000,-250.0,0.00014,2]
[422382861,1778915200000,-237.11072571,0.00014,2]
[422382859,1778915200000,-500.0,0.00014,2]
[422382860,1778915200000,-262.88927429,0.00014,2]
[422382858,1778915200000,-237.11072571,0.00014,2]
[422382856,1778915200000,-500.0,0.00014,2]
[422382855,1778915200000,-237.11072571,0.00014,2]
[422382857,1778915200000,-262.88927429,0.00014,2]
[422382866,1778915201000,-1000.0,0.00014036,2]
[422382865,1778915201000,-21.34927429,0.00014036,2]
[422382864,1778915201000,-166.55,0.00014011,2]
[422382868,1778915201000,-21.34927429,0.0001404,2]
[422382872,1778915201000,-429.24927429,0.0001425,2]
[422382869,1778915201000,-169.65072571,0.0001404,2]
[422382871,1778915201000,-240.81,0.00014238,2]
[422382867,1778915201000,-978.65072571,0.00014036,2]
[422382870,1778915201000,-160.29,0.00014144,2]
[422382874,1778915202000,-1000.0,0.0001425,2]
[422382873,1778915202000,-1000.0,0.0001425,2]
[422382877,1778915203000,-1000.0,0.0001425,2]
[422382876,1778915203000,-1000.0,0.0001425,2]
[422382875,1778915203000,-1000.0,0.0001425,2]
[422382879,1778915204000,-1000.0,0.0001425,2]
[422382878,1778915204000,-1000.0,0.0001425,2]
[422382880,1778915204000,-1000.0,0.0001425,2]
[422382883,1778915205000,-1000.0,0.0001425,2]
[422382882,1778915205000,-1000.0,0.0001425,2]
[422382881,1778915205000,-1000.0,0.0001425,2]
[422382884,1778915206000,-1000.0,0.0001425,2]
[422382886,1778915206000,-1000.0,0.0001425,2]
[422382885,1778915206000,-1000.0,0.0001425,2]
[422382888,1778915207000,-1000.0,0.0001425,2]
[422382887,1778915207000,-1000.0,0.0001425,2]
[422382889,1778915208000,-1000.0,0.0001425,2]
[422382890,1778915215000,-1000.0,0.0001425,2]
[422382892,1778915216000,-1000.0,0.0001425,2]
[422382891,1778915216000,-1000.0,0.0001425,2]
[422382895,1778915217000,-1000.0,0.0001425,2]
[422382894,1778915217000,-1000.0,0.0001425,2]
[422382893,1778915217000,-1000.0,0.0001425,2]
[422382896,1778915218000,-1000.0,0.0001425,2]
[422382897,1778915218000,-1000.0,0.0001425,2]
[422382901,1778915219000,-1000.0,0.0001425,2]
[422382900,1778915219000,-1000.0,0.0001425,2]
[422382899,1778915219000,-1000.0,0.0001425,2]
[422382898,1778915219000,-1000.0,0.0001425,2]
[422382903,1778915220000,-1000.0,0.0001425,2]
[422382902,1778915220000,-1000.0,0.0001425,2]
[422382904,1778915221000,-1000.0,0.0001425,2]
[422382906,1778915221000,-700.0,0.0001425,2]
[422382905,1778915221000,-300.0,0.00014249,2]
[422382907,1778915222000,-1000.0,0.0001425,2]
[422382908,1778915223000,-1000.0,0.0001425,2]
[422382909,1778915224000,-1000.0,0.0001425,2]
[422382911,1778915248000,-9750.0,0.0001425,2]
[422382910,1778915248000,-250.0,0.0001425,2]
[422382912,1778915249000,-4120.75072571,0.0001425,2]
[422382913,1778915249000,-152.0,0.00014261,7]
[422382914,1778915249000,-153.53588834,0.0001437,2]
[422382917,1778915249000,-484.94859545,0.00014692,2]
[422382918,1778915249000,-300.0,0.00014692,2]
[422382915,1778915249000,-711.49,0.000144,2]
[422382919,1778915249000,-3727.4247905,0.00014698,2]
[422382916,1778915249000,-349.85,0.000144,2]
[422382920,1778915250000,-10000.0,0.00014698,2]
[422382921,1778915252000,-10000.0,0.00014698,2]
[422382923,1778915252000,-1217.155,0.000148,2]
[422382922,1778915252000,-4891.9735095,0.00014698,2]
[422382928,1778915252000,-1681.27329838,0.000149,2]
[422382926,1778915252000,-1196.68232886,0.000149,2]
[422382927,1778915252000,-648.228,0.000149,2]
[422382925,1778915252000,-164.68786326,0.000149,2]
[422382924,1778915252000,-200.0,0.0001488,2]
[422382929,1778915253000,-154.73643497,0.000149,2]
[422382930,1778915253000,-266.30866192,0.000149,2]
[422382931,1778915253000,-1260.43403364,0.000149,2]
[422382932,1778915253000,-151.0,0.00014997,2]
[422382933,1778915253000,-247.447278,0.00014997,2]
[422382934,1778915253000,-500.0,0.00014999,2]
[422382937,1778915253000,-403.08694039,0.00014999,2]
[422382935,1778915253000,-500.0,0.00014999,2]
[422382936,1778915253000,-500.0,0.00014999,2]
[422382938,1778915253000,-500.0,0.00014999,2]
[422382944,1778915253000,-500.0,0.00014999,2]
[422382940,1778915253000,-500.0,0.00014999,2]
[422382939,1778915253000,-500.0,0.00014999,2]
[422382949,1778915253000,-500.0,0.00014999,2]
[422382948,1778915253000,-500.0,0.00014999,2]
[422382947,1778915253000,-500.0,0.00014999,2]
[422382950,1778915253000,-362.93312635,0.00014999,2]
[422382945,1778915253000,-500.0,0.00014999,2]
[422382943,1778915253000,-198.14496198,0.00014999,2]
[422382942,1778915253000,-500.0,0.00014999,2]
[422382941,1778915253000,-500.0,0.00014999,2]
[422382946,1778915253000,-455.90856275,0.00014999,2]
[422382957,1778915254000,-1014.33045862,0.00014999,2]
[422382951,1778915254000,-137.06687365,0.00014999,2]
[422382952,1778915254000,-500.0,0.00014999,2]
[422382953,1778915254000,-500.0,0.00014999,2]
[422382954,1778915254000,-500.0,0.00014999,2]
[422382955,1778915254000,-500.0,0.00014999,2]
[422382956,1778915254000,-284.15978878,0.00014999,2]
[422382958,1778915254000,-1590.92179969,0.00014999,2]
[422382961,1778915254000,-500.0,0.00014999,2]
[422382960,1778915254000,-500.0,0.00014999,2]
[422382963,1778915254000,-500.0,0.00014999,2]
[422382962,1778915254000,-500.0,0.00014999,2]
[422382964,1778915254000,-500.0,0.00014999,2]
[422382966,1778915254000,-500.0,0.00014999,2]
[422382965,1778915254000,-500.0,0.00014999,2]
[422382967,1778915254000,-500.0,0.00014999,2]
[422382968,1778915254000,-473.52107926,0.00014999,2]
[422382959,1778915254000,-500.0,0.00014999,2]
[422382972,1778915255000,-500.0,0.00014999,2]
[422382969,1778915255000,-26.47892074,0.00014999,2]
[422382970,1778915255000,-500.0,0.00014999,2]
[422382971,1778915255000,-500.0,0.00014999,2]
[422382973,1778915255000,-500.0,0.00014999,2]
[422382974,1778915255000,-500.0,0.00014999,2]
[422382981,1778915255000,-500.0,0.00014999,2]
[422382977,1778915255000,-500.0,0.00014999,2]
[422382976,1778915255000,-500.0,0.00014999,2]
[422382979,1778915255000,-500.0,0.00014999,2]
[422382978,1778915255000,-500.0,0.00014999,2]
[422382980,1778915255000,-500.0,0.00014999,2]
[422382982,1778915255000,-500.0,0.00014999,2]
[422382975,1778915255000,-500.0,0.00014999,2]
[422382983,1778915256000,-500.0,0.00014999,2]
[422382984,1778915256000,-500.0,0.00014999,2]
[422382985,1778915256000,-500.0,0.00014999,2]
[422382986,1778915256000,-500.0,0.00014999,2]
[422382988,1778915256000,-500.0,0.00014999,2]
[422382989,1778915256000,-473.52107926,0.00014999,2]
[422382987,1778915256000,-500.0,0.00014999,2]
[422382998,1778915257000,-500.0,0.00014999,2]
[422382990,1778915257000,-26.47892074,0.00014999,2]
[422382991,1778915257000,-500.0,0.00014999,2]
[422382992,1778915257000,-642.90704622,0.00014999,2]
[422382993,1778915257000,-500.0,0.00014999,2]
[422382994,1778915257000,-500.0,0.00014999,2]
[422382995,1778915257000,-500.0,0.00014999,2]
[422382996,1778915257000,-500.0,0.00014999,2]
[422382997,1778915257000,-500.0,0.00014999,2]
[422383000,1778915257000,-500.0,0.00014999,2]
[422383011,1778915257000,-162.55141342,0.00014999,2]
[422383001,1778915257000,-500.0,0.00014999,2]
[422383002,1778915257000,-500.0,0.00014999,2]
[422383003,1778915257000,-500.0,0.00014999,2]
[422383004,1778915257000,-500.0,0.00014999,2]
[422383005,1778915257000,-500.0,0.00014999,2]
[422383007,1778915257000,-500.0,0.00014999,2]
[422383006,1778915257000,-168.06261962,0.00014999,2]
[422383008,1778915257000,-500.0,0.00014999,2]
[422383010,1778915257000,-500.0,0.00014999,2]
[422383009,1778915257000,-500.0,0.00014999,2]
[422382999,1778915257000,-500.0,0.00014999,2]
[422383012,1778915266000,-1000.0,0.000149,2]
[422383013,1778915267000,-1000.0,0.000149,2]
[422383016,1778915268000,-337.44858658,0.00014999,2]
[422383014,1778915268000,-1000.0,0.000149,2]
[422383017,1778915268000,-500.0,0.00014999,2]
[422383018,1778915268000,-113.31349415,0.00014999,2]
[422383015,1778915268000,-49.23791927,0.000149,2]
[422383022,1778915269000,-386.68650585,0.00014999,2]
[422383021,1778915269000,-113.31349415,0.00014999,2]
[422383020,1778915269000,-500.0,0.00014999,2]
[422383019,1778915269000,-386.68650585,0.00014999,2]
[422383024,1778915270000,-113.31349415,0.00014999,2]
[422383023,1778915270000,-500.0,0.00014999,2]
[422383025,1778915270000,-386.68650585,0.00014999,2]
[422383026,1778915270000,-500.0,0.00014999,2]
[422383028,1778915270000,-386.68650585,0.00014999,2]
[422383030,1778915270000,-113.31349415,0.00014999,2]
[422383029,1778915270000,-500.0,0.00014999,2]
[422383027,1778915270000,-113.31349415,0.00014999,2]
[422383032,1778915272000,-500.0,0.00014999,2]
[422383033,1778915272000,-263.31349415,0.00014999,2]
[422383031,1778915272000,-236.68650585,0.00014999,2]
[422383035,1778915276000,-500.0,0.00014999,2]
[422383036,1778915276000,-263.31349415,0.00014999,2]
[422383034,1778915276000,-236.68650585,0.00014999,2]
[422383038,1778915431000,-320.0,0.00014745,2]
[422383067,1778915431000,-500.0,0.00014999,2]
[422383062,1778915431000,-500.0,0.00014999,2]
[422383066,1778915431000,-500.0,0.00014999,2]
[422383063,1778915431000,-500.0,0.00014999,2]
[422383058,1778915431000,-320.0,0.00014975,2]
[422383060,1778915431000,-150.0,0.00014998,2]
[422383069,1778915431000,-500.0,0.00014999,2]
[422383059,1778915431000,-1300.1264072,0.00014985,2]
[422383055,1778915431000,-320.0,0.00014939,2]
[422383051,1778915431000,-320.0,0.00014927,2]
[422383056,1778915431000,-320.0,0.0001496,2]
[422383049,1778915431000,-320.0,0.000149,2]
[422383052,1778915431000,-320.0,0.00014929,2]
[422383053,1778915431000,-320.0,0.00014931,2]
[422383050,1778915431000,-320.0,0.00014927,2]
[422383048,1778915431000,-495.18595217,0.000149,2]
[422383046,1778915431000,-320.0,0.00014874,2]
[422383057,1778915431000,-320.0,0.00014975,2]
[422383047,1778915431000,-320.0,0.00014899,2]
[422383045,1778915431000,-320.0,0.00014867,2]
[422383041,1778915431000,-332.0,0.00014815,2]
[422383044,1778915431000,-320.0,0.00014861,2]
[422383043,1778915431000,-320.0,0.00014851,2]
[422383042,1778915431000,-320.0,0.0001485,2]
[422383040,1778915431000,-320.0,0.00014753,2]
[422383037,1778915431000,-240.81,0.00013985,2]
[422383039,1778915431000,-320.0,0.00014748,2]
[422383054,1778915431000,-320.0,0.00014935,2]
[422383061,1778915431000,-236.68650585,0.00014999,2]
[422383065,1778915431000,-570.34989653,0.00014999,2]
[422383064,1778915431000,-500.0,0.00014999,2]
[422383095,1778915431000,-300.0,0.00014999,2]
[422383098,1778915431000,-669.0,0.00015,5]
[422383096,1778915431000,-300.0,0.00014999,2]
[422383097,1778915431000,-1086.0,0.00015,5]
[422383094,1778915431000,-238.8923524,0.00014999,2]
[422383088,1778915431000,-200.0,0.00014999,2]
[422383085,1778915431000,-168.75546063,0.00014999,2]
[422383086,1778915431000,-150.0,0.00014999,2]
[422383083,1778915431000,-500.0,0.00014999,2]
[422383087,1778915431000,-500.0,0.00014999,2]
[422383084,1778915431000,-500.0,0.00014999,2]
[422383092,1778915431000,-300.0,0.00014999,2]
[422383091,1778915431000,-300.0,0.00014999,2]
[422383068,1778915431000,-500.0,0.00014999,2]
[422383093,1778915431000,-300.0,0.00014999,2]
[422383089,1778915431000,-500.0,0.00014999,2]
[422383082,1778915431000,-500.0,0.00014999,2]
[422383081,1778915431000,-500.0,0.00014999,2]
[422383079,1778915431000,-150.0,0.00014999,2]
[422383077,1778915431000,-500.0,0.00014999,2]
[422383076,1778915431000,-425.1954329,0.00014999,2]
[422383078,1778915431000,-500.0,0.00014999,2]
[422383071,1778915431000,-500.0,0.00014999,2]
[422383072,1778915431000,-174.68223803,0.00014999,2]
[422383074,1778915431000,-500.0,0.00014999,2]
[422383075,1778915431000,-500.0,0.00014999,2]
[422383070,1778915431000,-501.56132056,0.00014999,2]
[422383073,1778915431000,-500.0,0.00014999,2]